bitfinex/quotes_BTCUSD_20230904
["timestamp","ask_amount","ask_price","bid_price","bid_amount"]
[1693836351022,6.2877084,25893.0,25892.0,0.004]
[1693836351305,6.2874684,25893.0,25892.0,0.004]
[1693836351512,6.2875884,25893.0,25892.0,0.004]
[1693836351706,6.2891484,25893.0,25892.0,0.004]
[1693836351956,6.2908284,25893.0,25892.0,0.004]
[1693836352167,6.2956284,25893.0,25892.0,0.004]
[1693836352349,6.2893884,25893.0,25892.0,0.004]
[1693836352556,6.2915484,25893.0,25892.0,0.004]
[1693836352764,6.2914284,25893.0,25892.0,0.004]
[1693836352967,6.2909484,25893.0,25892.0,0.004]
[1693836353168,6.2944284,25893.0,25892.0,0.004]
[1693836353377,6.2905884,25893.0,25892.0,0.004]
[1693836353586,6.2896284,25893.0,25892.0,0.004]
[1693836354432,0.16,25891.0,25890.0,0.000396]
[1693836354644,4.95615831,25891.0,25890.0,0.000396]
[1693836354848,6.49120141,25891.0,25890.0,0.000396]
[1693836355052,6.57334141,25891.0,25890.0,0.000396]
[1693836355251,6.58234141,25891.0,25890.0,0.000396]
[1693836355483,6.59146141,25891.0,25890.0,0.000396]
[1693836355686,6.60100141,25891.0,25890.0,0.000396]
[1693836355886,6.60040141,25891.0,25890.0,0.000396]
[1693836356168,6.60190141,25891.0,25890.0,0.000396]
[1693836356389,6.60022141,25891.0,25890.0,0.000396]
[1693836356588,6.62452141,25891.0,25890.0,0.000396]
[1693836356800,6.60526141,25891.0,25890.0,0.000396]
[1693836357007,6.62992141,25891.0,25890.0,0.000396]
[1693836357230,6.62734141,25891.0,25890.0,0.000396]
[1693836357421,6.64954141,25891.0,25890.0,0.000396]
[1693836357661,6.65044141,25891.0,25890.0,0.000396]
[1693836357874,6.65050141,25891.0,25890.0,0.000396]
[1693836358072,6.65590141,25891.0,25890.0,0.000396]
[1693836358284,6.65260141,25891.0,25890.0,0.000396]
[1693836358511,6.65314141,25891.0,25890.0,0.000396]
[1693836358724,6.65332141,25891.0,25890.0,0.000396]
[1693836358933,6.65398141,25891.0,25890.0,0.000396]
[1693836359116,6.65410141,25891.0,25890.0,0.000396]
[1693836359373,6.65362141,25891.0,25890.0,0.000396]
[1693836359578,6.65368141,25891.0,25890.0,0.000396]
[1693836359802,6.65428141,25891.0,25890.0,0.000396]
[1693836359981,6.65452141,25891.0,25890.0,0.000396]
[1693836360183,6.65422141,25891.0,25890.0,0.000396]
[1693836360439,6.46291057,25891.0,25890.0,0.000396]
[1693836360647,6.27239057,25891.0,25890.0,0.000396]
[1693836360853,6.27185057,25891.0,25890.0,0.000396]
[1693836361033,6.26855057,25891.0,25890.0,0.000396]
[1693836361263,6.27059057,25891.0,25890.0,0.000396]
[1693836361476,6.27035057,25891.0,25890.0,0.000396]
[1693836361702,6.26609057,25891.0,25890.0,0.000396]
[1693836361908,6.26603057,25891.0,25890.0,0.000396]
[1693836362116,6.27101057,25891.0,25890.0,0.000396]
[1693836362324,6.27107057,25891.0,25890.0,0.000396]
[1693836362533,6.45281261,25891.0,25890.0,0.000396]
[1693836362751,6.45299261,25891.0,25890.0,0.000396]
[1693836362973,6.45317261,25891.0,25890.0,0.000396]
[1693836363174,6.46313261,25891.0,25890.0,0.000396]
[1693836363356,6.66169261,25891.0,25890.0,0.000396]
[1693836363563,6.79399261,25891.0,25890.0,0.000396]
[1693836363768,6.79819261,25891.0,25890.0,0.000396]
[1693836364016,6.79831261,25891.0,25890.0,0.000396]
[1693836364199,6.79303261,25891.0,25890.0,0.000396]
[1693836364449,6.65647261,25891.0,25890.0,0.000396]
[1693836364663,6.65761261,25891.0,25890.0,0.000396]
[1693836364870,6.65791261,25891.0,25890.0,0.000396]
[1693836365080,6.79735261,25891.0,25890.0,0.000396]
[1693836365277,6.79339261,25891.0,25890.0,0.000396]
[1693836365488,6.85331261,25891.0,25890.0,0.000396]
[1693836365697,6.98813261,25891.0,25890.0,0.000396]
[1693836365909,6.85349261,25891.0,25890.0,0.000396]
[1693836366121,6.98561261,25891.0,25890.0,0.000396]
[1693836366334,7.77243359,25891.0,25890.0,0.000396]
[1693836366541,7.38035942,25891.0,25890.0,0.000396]
[1693836366761,7.23239942,25891.0,25890.0,0.000396]
[1693836366971,7.37555942,25891.0,25890.0,0.000396]
[1693836367171,7.37387942,25891.0,25890.0,0.000396]
[1693836367372,7.37447942,25891.0,25890.0,0.000396]
[1693836367581,7.18925738,25891.0,25890.0,0.000396]
[1693836367799,7.18913738,25891.0,25890.0,0.000396]
[1693836368212,6.95811983,25891.0,25890.0,0.000396]
[1693836368423,7.21119674,25891.0,25890.0,0.000396]
[1693836368635,7.08353983,25891.0,25890.0,0.000396]
[1693836368840,7.08281983,25891.0,25890.0,0.000396]
[1693836369046,7.08377983,25891.0,25890.0,0.000396]
[1693836369298,7.23169983,25891.0,25890.0,0.000396]
[1693836369484,7.23121983,25891.0,25890.0,0.000396]
[1693836369689,7.23133983,25891.0,25890.0,0.000396]
[1693836369919,7.23109983,25891.0,25890.0,0.000396]
[1693836370128,7.23337983,25891.0,25890.0,0.000396]
[1693836370324,7.23541983,25891.0,25890.0,0.000396]
[1693836370550,7.24009983,25891.0,25890.0,0.000396]
[1693836370757,0.04,25886.0,25885.0,0.11525228]
[1693836370973,3.92545878,25886.0,25885.0,0.11525228]
[1693836371183,0.02,25885.0,25879.0,0.24726026]
[1693836371397,0.1079,25882.0,25881.0,0.2086]
[1693836371623,0.1079,25882.0,25880.0,0.15272491]
[1693836371624,2.04046078,25882.0,25880.0,0.15272491]
[1693836371849,2.04046078,25882.0,25880.0,0.10286414]
[1693836373071,2.04046078,25882.0,25880.0,0.00066164]
[1693836373283,0.00491344,25881.0,25879.0,0.077281]
[1693836373487,0.00491344,25881.0,25879.0,0.154561]
[1693836373833,0.00491344,25881.0,25880.0,0.004]
[1693836374015,0.00491344,25881.0,25880.0,0.008]
[1693836374190,0.00491344,25881.0,25880.0,0.004]
[1693836374418,0.00791344,25881.0,25879.0,0.158561]
[1693836374616,0.00791344,25881.0,25878.0,0.38227741]
[1693836374945,1.17077322,25881.0,25879.0,0.081281]
[1693836375356,1.16285978,25881.0,25879.0,0.077281]
[1693836375570,0.49498678,25880.0,25879.0,0.001]
[1693836375777,1.26778378,25880.0,25879.0,0.001]
[1693836376400,2.04058078,25880.0,25879.0,0.001]
[1693836376942,2.04358078,25880.0,25877.0,0.66065862]
[1693836377172,2.04758078,25880.0,25879.0,0.001]
[1693836377940,2.82037778,25880.0,25879.0,0.001]
[1693836378143,0.00584674,25879.0,25877.0,0.58337062]
[1693836378342,1.27366652,25879.0,25877.0,0.58737062]
[1693836378545,1.27366652,25879.0,25877.0,0.51008362]
[1693836379149,2.04065278,25879.0,25877.0,0.43279662]
[1693836379356,2.04506234,25879.0,25877.0,0.43279662]
[1693836379574,2.04606234,25879.0,25877.0,0.43279662]
[1693836379800,0.00473115,25878.0,25877.0,0.43279662]
[1693836379977,0.00473115,25878.0,25877.0,0.42879662]
[1693836380378,0.00473115,25878.0,25877.0,0.43279662]
[1693836380760,0.00473115,25878.0,25877.0,0.46393353]
[1693836381184,0.77758815,25878.0,25877.0,0.46393353]
[1693836381434,0.88548815,25878.0,25877.0,0.46393353]
[1693836381597,0.88948815,25878.0,25877.0,0.46493353]
[1693836382159,0.89248815,25878.0,25877.0,0.46493353]
[1693836382405,0.89343687,25878.0,25877.0,0.46493353]
[1693836382606,0.89043687,25878.0,25877.0,0.46493353]
[1693836382811,0.91143687,25878.0,25877.0,0.46493353]
[1693836383154,0.90743687,25878.0,25877.0,0.46393353]
[1693836383432,2.07138065,25878.0,25877.0,0.46493353]
[1693836383970,2.06738065,25878.0,25877.0,0.46393353]
[1693836384211,2.06170078,25878.0,25877.0,0.46393353]
[1693836384664,2.08370078,25878.0,25877.0,0.46393353]
[1693836385079,2.85655778,25878.0,25877.0,0.46393353]
[1693836385224,3.62941478,25878.0,25877.0,0.46393353]
[1693836385450,3.64941478,25878.0,25877.0,0.46393353]
[1693836385647,3.64941478,25878.0,25877.0,0.42879662]
[1693836386252,3.62741478,25878.0,25877.0,0.42879662]
[1693836386451,3.65141478,25878.0,25877.0,0.42879662]
[1693836386674,3.63041478,25878.0,25877.0,0.42879662]
[1693836386907,3.65441478,25878.0,25877.0,0.42879662]
[1693836387057,3.72059478,25878.0,25877.0,0.42879662]
[1693836387257,3.70277478,25878.0,25877.0,0.42879662]
[1693836387456,3.72539478,25878.0,25877.0,0.42879662]
[1693836387751,3.72089478,25878.0,25877.0,0.42879662]
[1693836387961,3.6592525,25878.0,25877.0,0.42879662]
[1693836388176,2.8863955,25878.0,25877.0,0.42879662]
[1693836389804,2.88155778,25878.0,25877.0,0.42879662]
[1693836390009,2.88765866,25878.0,25877.0,0.42879662]
[1693836394415,0.54908766,25878.0,25877.0,0.42879662]
[1693836394835,2.09480166,25878.0,25877.0,0.42879662]
[1693836401206,1.21404466,25878.0,25877.0,0.42879662]
[1693836402299,1.98690166,25878.0,25877.0,0.42879662]
[1693836404221,1.21404466,25878.0,25877.0,0.42879662]
[1693836404459,0.44118766,25878.0,25877.0,0.42879662]
[1693836404702,1.21404466,25878.0,25877.0,0.42879662]
[1693836406629,1.98690166,25878.0,25877.0,0.42879662]
[1693836407124,1.98690166,25878.0,25877.0,0.46263011]
[1693836420248,1.98690166,25878.0,25877.0,0.61720611]
[1693836420249,0.048,25878.0,25877.0,0.61720611]
[1693836420672,0.048,25878.0,25877.0,0.53991811]
[1693836425474,0.05393135,25878.0,25877.0,0.53991811]
[1693836428471,0.05393135,25878.0,25877.0,0.53491811]
[1693836428870,0.82678835,25878.0,25877.0,0.53491811]
[1693836429495,0.05393135,25878.0,25877.0,0.61220611]
[1693836429863,0.048,25878.0,25877.0,0.68949411]
[1693836430255,0.048,25878.0,25877.0,0.61220611]
[1693836436542,0.048,25878.0,25877.0,0.68949411]
[1693836436749,0.048,25878.0,25877.0,0.61220611]
[1693836437608,0.048,25878.0,25877.0,0.68949411]
[1693836438021,0.048,25878.0,25877.0,0.99260549]
[1693836438231,0.048,25878.0,25877.0,1.00807224]
[1693836438615,0.048,25878.0,25877.0,1.08536024]
[1693836439258,0.048,25878.0,25877.0,1.22449236]
[1693836439567,0.048,25878.0,25877.0,1.08536024]
[1693836439976,0.048,25878.0,25877.0,1.22449236]
[1693836440303,0.048,25878.0,25877.0,1.08536024]
[1693836441924,0.048,25878.0,25877.0,1.44036367]
[1693836442329,0.048,25878.0,25877.0,1.21454029]
[1693836442658,0.024,25878.0,25877.0,1.51233141]
[1693836442864,0.048,25878.0,25877.0,1.51233141]
[1693836443483,0.024,25878.0,25877.0,1.51233141]
[1693836443892,3.82598895,25884.0,25878.0,0.1]
[1693836444093,0.38708678,25883.0,25879.0,0.46332171]
[1693836444544,0.38708678,25883.0,25880.0,0.03139168]
[1693836444751,0.38708678,25883.0,25881.0,0.154552]
[1693836446011,0.38708678,25883.0,25881.0,0.231828]
[1693836446391,0.41696202,25883.0,25881.0,0.231828]
[1693836447397,0.00455285,25882.0,25881.0,0.231828]
[1693836448980,0.05255285,25882.0,25881.0,0.231828]
[1693836449133,0.05255285,25882.0,25881.0,0.26587767]
[1693836454076,0.048,25882.0,25881.0,0.154552]
[1693836454234,0.048,25882.0,25881.0,0.19164662]
[1693836454836,0.05303371,25882.0,25881.0,0.26892262]
[1693836455081,0.05303371,25882.0,25881.0,0.34619862]
[1693836455518,0.05303371,25882.0,25881.0,0.34119862]
[1693836462638,0.048,25882.0,25881.0,0.34119862]
[1693836462845,0.048,25882.0,25881.0,0.69041647]
[1693836464084,0.024,25882.0,25881.0,0.69041647]
[1693836465304,0.01203635,25885.0,25881.0,0.69041647]
[1693836465513,0.024,25882.0,25881.0,0.69041647]
[1693836465719,0.048,25882.0,25881.0,0.69041647]
[1693836466132,0.01203635,25885.0,25881.0,0.69041647]
[1693836466751,0.01800836,25885.0,25881.0,0.69041647]
[1693836466966,0.06600836,25885.0,25881.0,0.69041647]
[1693836469238,0.06600836,25885.0,25882.0,0.11016454]
[1693836469450,0.06600836,25885.0,25883.0,0.23181]
[1693836469654,0.06600836,25885.0,25883.0,0.26315404]
[1693836470099,0.04200836,25885.0,25883.0,0.26315404]
[1693836470300,0.01800836,25885.0,25883.0,0.26315404]
[1693836470517,0.02997201,25885.0,25883.0,0.34042404]
[1693836470743,0.05397201,25885.0,25883.0,0.34042404]
[1693836471153,0.02997201,25885.0,25883.0,0.34042404]
[1693836472770,0.05397201,25885.0,25883.0,0.34042404]
[1693836483191,0.00489451,25884.0,25883.0,0.34042404]
[1693836483413,0.00489451,25884.0,25883.0,0.26315404]
[1693836483634,0.00489451,25884.0,25883.0,0.18588404]
[1693836484247,0.02889451,25884.0,25883.0,0.18588404]
[1693836484659,0.024,25884.0,25883.0,0.15454]
[1693836485263,0.0299989,25884.0,25883.0,0.15454]
[1693836485672,0.1378989,25884.0,25883.0,0.15454]
[1693836485801,0.0299989,25884.0,25883.0,0.15454]
[1693836486027,0.0539989,25884.0,25883.0,0.15454]
[1693836486440,0.0539989,25884.0,25883.0,0.07727]
[1693836487503,0.0539989,25884.0,25883.0,0.10860065]
[1693836489387,0.0539989,25884.0,25883.0,0.18587065]
[1693836495867,0.0539989,25884.0,25883.0,0.10860065]
[1693836497243,0.820678,25884.0,25883.0,0.03133065]
[1693836497456,1.593356,25884.0,25883.0,0.03133065]
[1693836497686,1.59850663,25884.0,25883.0,0.03133065]
[1693836497892,2.70659817,25884.0,25883.0,0.03133065]
[1693836498092,2.71254952,25884.0,25881.0,0.15455]
[1693836498290,0.00508287,25883.0,25881.0,0.15455]
[1693836499870,0.02908287,25883.0,25881.0,0.15455]
[1693836500494,0.05308287,25883.0,25882.0,0.02910112]
[1693836501613,0.00508287,25883.0,25882.0,0.02910112]
[1693836502233,0.05308287,25883.0,25882.0,0.02910112]
[1693836503006,0.82578987,25883.0,25882.0,0.02910112]
[1693836507600,0.05308287,25883.0,25882.0,0.02910112]
[1693836514582,0.05308287,25883.0,25882.0,0.10637412]
[1693836524288,0.05308287,25883.0,25882.0,0.02910112]
[1693836526501,3.8785005,25883.0,25882.0,0.02910112]
[1693836526733,0.01203635,25882.0,25879.0,0.12699715]
[1693836526958,0.39912313,25882.0,25879.0,0.20427815]
[1693836527163,1.94462613,25882.0,25879.0,0.20427815]
[1693836527799,1.95762613,25882.0,25879.0,0.20527815]
[1693836528031,1.97062613,25882.0,25879.0,0.20627815]
[1693836529893,0.00484326,25881.0,25879.0,0.20627815]
[1693836530517,0.00484326,25881.0,25879.0,0.156562]
[1693836530721,0.00484326,25881.0,25879.0,0.232844]
[1693836531096,0.00484326,25881.0,25879.0,0.231844]
[1693836531293,0.01784326,25881.0,25879.0,0.232844]
[1693836532109,0.00512286,25880.0,25879.0,0.232844]
[1693836532723,0.00512286,25880.0,25879.0,0.233844]
[1693836533061,0.00512286,25880.0,25879.0,0.232844]
[1693836533268,0.01812286,25880.0,25879.0,0.233844]
[1693836534133,0.01812286,25880.0,25879.0,0.232844]
[1693836534332,0.03112286,25880.0,25879.0,0.233844]
[1693836541349,0.026,25880.0,25879.0,0.233844]
[1693836541805,0.03136079,25880.0,25879.0,0.233844]
[1693836542012,0.03136079,25880.0,25879.0,0.156562]
[1693836547305,0.03136079,25880.0,25879.0,0.185692]
[1693836563156,0.026,25880.0,25879.0,0.185692]
[1693836566281,0.026,25880.0,25879.0,0.262974]
[1693836578334,0.026,25880.0,25879.0,0.80354857]
[1693836580720,0.026,25880.0,25879.0,0.94262744]
[1693836580943,0.026,25880.0,25879.0,0.97195756]
[1693836583043,0.026,25880.0,25879.0,1.35904434]
[1693836583470,0.026,25880.0,25879.0,1.21996547]
[1693836584717,0.026,25880.0,25879.0,1.37154951]
[1693836587847,0.026,25880.0,25879.0,1.46421947]
[1693836588791,0.026,25880.0,25879.0,1.35899506]
[1693836590947,0.026,25880.0,25879.0,1.21991619]
[1693836591981,0.026,25880.0,25879.0,1.35899506]
[1693836592613,0.026,25880.0,25879.0,1.21991619]
[1693836593223,0.026,25880.0,25879.0,1.35899506]
[1693836593629,0.026,25880.0,25879.0,1.21991619]
[1693836598920,0.026,25880.0,25879.0,1.20130095]
[1693836609665,0.026,25880.0,25879.0,1.34037982]
[1693836610078,0.026,25880.0,25879.0,1.04837637]
[1693836610265,0.026,25880.0,25879.0,1.09968717]
[1693836610645,0.026,25880.0,25879.0,1.13968717]
[1693836610853,0.3375,25885.0,25882.0,0.06]
[1693836611073,0.01203635,25886.0,25884.0,0.1079]
[1693836611283,0.01203635,25886.0,25885.0,0.339692]
[1693836611514,0.01203635,25886.0,25885.0,0.416956]
[1693836611718,0.01203635,25886.0,25885.0,0.65959075]
[1693836612328,0.1595,25888.0,25885.0,0.69959075]
[1693836612537,0.04250346,25891.0,25887.0,0.1479]
[1693836612741,0.1595,25890.0,25888.0,0.19420071]
[1693836612944,0.01203635,25892.0,25889.0,0.456908]
[1693836613152,0.17053635,25893.0,25891.0,0.1079]
[1693836613358,0.01203635,25893.0,25892.0,0.1079]
[1693836613562,0.01203635,25893.0,25892.0,0.339629]
[1693836614172,0.00703635,25893.0,25892.0,0.339629]
[1693836614376,0.05503635,25893.0,25892.0,0.339629]
[1693836614590,0.03103635,25893.0,25892.0,0.339629]
[1693836614793,0.03103635,25893.0,25892.0,0.57151847]
[1693836615611,0.00703635,25893.0,25892.0,0.57151847]
[1693836616023,0.03103635,25893.0,25892.0,0.57351847]
[1693836616229,0.05503635,25893.0,25892.0,0.57551847]
[1693836618319,0.06096378,25893.0,25892.0,0.158486]
[1693836618556,0.06096378,25893.0,25892.0,0.235729]
[1693836621165,0.05503635,25893.0,25892.0,0.235729]
[1693836622401,0.05503635,25893.0,25892.0,0.26631766]
[1693836628389,0.05503635,25893.0,25892.0,0.34356066]
[1693836628623,0.05503635,25893.0,25892.0,0.45146066]
[1693836629209,0.05503635,25893.0,25892.0,0.71769158]
[1693836645097,0.04859653,25893.0,25892.0,0.71769158]
[1693836645998,0.04859653,25893.0,25892.0,0.83854744]
[1693836646342,0.04859653,25893.0,25892.0,1.0497372]
[1693836653444,0.04859653,25893.0,25892.0,0.66265042]
[1693836680495,0.04156018,25893.0,25892.0,1.1097372]
[1693836683795,0.04156018,25893.0,25892.0,1.20236569]
[1693836688507,0.04156018,25893.0,25892.0,0.81527891]
[1693836695339,0.04156018,25893.0,25892.0,0.72265042]
[1693836708168,0.04156018,25893.0,25892.0,0.70265042]
[1693836708374,0.04156018,25893.0,25892.0,0.72265042]
[1693836715769,0.04156018,25893.0,25892.0,0.70265042]
[1693836716029,0.04156018,25893.0,25892.0,0.72265042]
[1693836724098,0.04156018,25893.0,25892.0,0.81534349]
[1693836724299,0.04156018,25893.0,25892.0,0.72265042]
[1693836724884,0.04156018,25893.0,25892.0,0.81534349]
[1693836732334,0.04156018,25893.0,25892.0,1.20243027]
[1693836732575,0.04156018,25893.0,25892.0,1.34146988]
[1693836732781,0.04156018,25893.0,25892.0,1.13028012]
[1693836733277,0.04859653,25893.0,25892.0,1.13028012]
[1693836734358,0.04859653,25893.0,25892.0,1.41861953]
[1693836736496,0.04859653,25893.0,25892.0,1.27957992]
[1693836737109,0.04859653,25893.0,25892.0,1.41861953]
[1693836737310,0.04859653,25893.0,25892.0,1.27957992]
[1693836737963,0.04859653,25893.0,25892.0,1.41861953]
[1693836738172,0.04859653,25893.0,25892.0,1.27957992]
[1693836739576,0.04859653,25893.0,25892.0,1.41861953]
[1693836739781,0.04859653,25893.0,25892.0,1.51653441]
[1693836740511,0.04859653,25893.0,25892.0,1.41861953]
[1693836740725,0.04156018,25893.0,25892.0,1.13028012]
[1693836740931,0.04859653,25893.0,25892.0,1.22848577]
[1693836741363,0.04859653,25893.0,25892.0,1.24848577]
[1693836741364,0.04156018,25893.0,25892.0,1.24848577]
[1693836741571,0.04156018,25893.0,25892.0,1.31675308]
[1693836741772,0.024,25893.0,25892.0,1.54634841]
[1693836742533,0.00703635,25895.0,25894.0,0.06]
[1693836742886,0.00703635,25895.0,25894.0,1.17271891]
[1693836743061,0.00703635,25895.0,25894.0,1.27092455]
[1693836743291,0.00703635,25895.0,25894.0,1.29938006]
[1693836743496,0.00703635,25895.0,25894.0,1.20117442]
[1693836743942,0.00703635,25896.0,25895.0,0.348936]
[1693836744169,0.00296264,25896.0,25895.0,0.84392278]
[1693836744809,0.00296264,25896.0,25895.0,0.86392278]
[1693836746223,0.02696264,25896.0,25895.0,0.86592278]
[1693836746375,0.05096264,25896.0,25895.0,0.86792278]
[1693836746994,0.048,25896.0,25895.0,1.16792278]
[1693836747192,0.048,25896.0,25895.0,1.26054163]
[1693836747394,0.00296264,25899.0,25898.0,0.348904]
[1693836747599,0.00296264,25899.0,25898.0,0.92111678]
[1693836748225,0.00296264,25899.0,25898.0,1.16756734]
[1693836749059,0.02696264,25899.0,25898.0,1.16956734]
[1693836750964,0.05196264,25899.0,25898.0,1.17156734]
[1693836751958,0.049,25899.0,25898.0,1.19156734]
[1693836752165,0.049,25899.0,25898.0,1.56879334]
[1693836757309,0.049,25899.0,25898.0,1.59721281]
[1693836758959,0.049,25899.0,25898.0,1.51998681]
[1693836779867,0.049,25899.0,25898.0,1.27353625]
[1693836780367,0.05196264,25899.0,25898.0,1.27353625]
[1693836780788,0.05196264,25899.0,25898.0,1.50597057]
[1693836781197,0.05196264,25899.0,25898.0,1.27353625]
[1693836782246,0.05196264,25899.0,25898.0,1.54762023]
[1693836784099,0.02696264,25899.0,25898.0,1.54562023]
[1693836784499,0.01996264,25899.0,25898.0,1.54462023]
[1693836784697,0.03596264,25899.0,25898.0,1.54562023]
[1693836790665,0.03596264,25899.0,25898.0,1.63823908]
[1693836794859,0.03596264,25899.0,25898.0,0.07041947]
[1693836795064,0.04129014,25899.0,25898.0,0.22487147]
[1693836795294,0.04129014,25899.0,25898.0,0.30209747]
[1693836799914,0.03596264,25899.0,25898.0,0.30209747]
[1693836800856,0.03596264,25899.0,25898.0,0.59227564]
[1693836822631,0.03596264,25899.0,25898.0,0.87431025]
[1693836822833,0.03596264,25899.0,25898.0,0.96697707]
[1693836823432,0.03596264,25899.0,25898.0,1.22927786]
[1693836826183,0.03596264,25899.0,25898.0,0.96697707]
[1693836828006,0.03596264,25899.0,25898.0,1.18973352]
[1693836830502,0.03596264,25899.0,25898.0,0.96697707]
[1693836838714,0.00296264,25899.0,25898.0,0.96497707]
[1693836839143,0.01796264,25899.0,25898.0,0.96597707]
[1693836839966,0.01796264,25899.0,25898.0,1.42878357]
[1693836840166,0.015,25899.0,25898.0,1.47511698]
[1693836840371,0.01796264,25899.0,25898.0,1.47511698]
[1693836843926,0.00996264,25899.0,25898.0,1.47411698]
[1693836844118,0.00996264,25899.0,25898.0,1.47511698]
[1693836844314,0.00996264,25899.0,25898.0,1.47411698]
[1693836844686,0.00296264,25899.0,25898.0,1.47511698]
[1693836845125,0.00296264,25899.0,25898.0,1.47611698]
[1693836845552,0.00296264,25899.0,25898.0,1.47511698]
[1693836845758,0.00296264,25901.0,25900.0,0.04]
[1693836845960,0.00296264,25901.0,25900.0,1.01369281]
[1693836846171,0.00296264,25901.0,25900.0,1.04135393]
[1693836847036,0.01996264,25901.0,25900.0,1.04235393]
[1693836847671,0.01996264,25901.0,25900.0,0.9497479]
[1693836847985,0.03596264,25901.0,25900.0,0.9507479]
[1693836848187,0.03596264,25901.0,25900.0,1.04335393]
[1693836848392,0.03596264,25901.0,25900.0,1.26984484]
[1693836848802,0.03596264,25901.0,25900.0,1.17723881]
[1693836863043,0.03596264,25901.0,25900.0,1.06933881]
[1693836863575,0.03596264,25901.0,25900.0,0.8428479]
[1693836863791,0.03596264,25901.0,25900.0,1.22497633]
[1693836869916,0.03596264,25901.0,25900.0,1.31758236]
[1693836871822,0.03596264,25901.0,25900.0,1.04335393]
[1693836872627,0.03596264,25901.0,25900.0,1.36335393]
[1693836873672,0.03596264,25901.0,25900.0,1.61629764]
[1693836874580,0.03596264,25901.0,25900.0,1.36335393]
[1693836875488,0.03596264,25901.0,25900.0,1.57448457]
[1693836876401,0.03596264,25901.0,25900.0,1.36335393]
[1693836876851,0.033,25901.0,25900.0,1.36335393]
[1693836877070,0.033,25901.0,25900.0,1.78525187]
[1693836877273,0.033,25901.0,25900.0,1.50226298]
[1693836877475,0.033,25901.0,25900.0,1.72831237]
[1693836877673,0.033,25901.0,25900.0,1.50226298]
[1693836878298,0.033,25901.0,25900.0,1.5973051]
[1693836879677,0.033,25901.0,25900.0,1.86473817]
[1693836880704,0.03596264,25901.0,25900.0,1.50469907]
[1693836881486,0.033,25901.0,25900.0,1.50469907]
[1693836881691,0.03596264,25901.0,25900.0,1.50469907]
[1693836884246,0.03596264,25901.0,25900.0,1.69003271]
[1693836885053,0.033,25901.0,25900.0,1.69003271]
[1693836885263,0.03596264,25901.0,25900.0,1.69003271]
[1693836885848,0.03596264,25901.0,25900.0,1.6900726]
[1693836886339,0.03596264,25901.0,25900.0,1.55112366]
[1693836887094,0.03596264,25901.0,25900.0,1.96347084]
[1693836887704,0.033,25901.0,25900.0,1.69006989]
[1693836887952,0.033,25901.0,25900.0,1.55112366]
[1693836890289,0.017,25901.0,25900.0,1.55012366]
[1693836890490,0.01996264,25901.0,25900.0,1.55012366]
[1693836890915,0.00296264,25901.0,25900.0,1.54912366]
[1693836891115,0.01096264,25901.0,25900.0,1.55012366]
[1693836891723,0.01796264,25901.0,25900.0,1.55012366]
[1693836897632,0.01796264,25901.0,25900.0,1.82456518]
[1693836898169,0.01796264,25901.0,25900.0,1.55012366]
[1693836900126,0.015,25901.0,25900.0,1.55012366]
[1693836901176,0.015,25901.0,25900.0,1.78179072]
[1693836902469,0.015,25901.0,25900.0,2.18809072]
[1693836902678,0.015,25901.0,25900.0,2.02275708]
[1693836902878,0.00296264,25903.0,25902.0,0.06]
[1693836903127,0.00296264,25903.0,25902.0,1.03366496]
[1693836903335,0.00296264,25903.0,25902.0,1.33366496]
[1693836903515,0.00296264,25903.0,25902.0,1.35933361]
[1693836903714,0.1781,25904.0,25903.0,0.368844]
[1693836903715,0.18106264,25904.0,25903.0,0.368844]
[1693836904004,0.18106264,25904.0,25903.0,1.16383078]
[1693836904193,0.02266264,25904.0,25903.0,1.16383078]
[1693836905812,0.04066264,25904.0,25903.0,1.16583078]
[1693836906226,0.05466264,25904.0,25903.0,1.42234809]
[1693836906848,0.05466264,25904.0,25903.0,1.16783078]
[1693836907422,0.05466264,25904.0,25903.0,1.4741487]
[1693836910094,0.05466264,25904.0,25903.0,1.19349109]
[1693836910308,0.05466264,25904.0,25903.0,1.28609927]
[1693836911332,0.05466264,25904.0,25903.0,1.19349109]
[1693836911542,0.1781,25906.0,25905.0,0.06]
[1693836911749,0.1781,25906.0,25905.0,0.86380678]
[1693836912158,0.1781,25906.0,25905.0,0.94101178]
[1693836912363,0.0197,25906.0,25905.0,0.94101178]
[1693836913161,0.0207,25906.0,25905.0,0.94301178]
[1693836913708,0.0207,25906.0,25905.0,1.20035565]
[1693836914292,0.0217,25906.0,25905.0,1.20235565]
[1693836916131,0.0217,25906.0,25905.0,1.50235565]
[1693836917056,0.0217,25906.0,25905.0,1.24501178]
[1693836917255,0.0217,25906.0,25905.0,1.48978565]
[1693836922005,0.0217,25906.0,25905.0,1.38188565]
[1693836922223,0.0217,25906.0,25905.0,1.40748486]
[1693836937826,0.0217,25906.0,25905.0,1.33027986]
[1693836957283,0.0217,25906.0,25905.0,1.4228244]
[1693836964074,0.0217,25906.0,25905.0,1.33027986]
[1693836964407,0.0217,25906.0,25905.0,1.4228244]
[1693836965122,0.0217,25906.0,25905.0,1.33027986]
[1693836965420,0.0217,25906.0,25905.0,1.4228244]
[1693836967194,0.0217,25906.0,25905.0,1.33027986]
[1693836974232,0.01963928,25906.0,25905.0,1.33027986]
[1693836974455,0.01963928,25906.0,25905.0,1.4228244]
[1693836988005,0.13240997,25906.0,25905.0,0.63841921]
[1693836988415,0.13240997,25906.0,25905.0,0.67841921]
[1693836988979,0.13240997,25906.0,25905.0,0.63841921]
[1693836989954,0.13240997,25906.0,25905.0,0.26121421]
[1693836999937,0.13240997,25906.0,25905.0,0.18400921]
[1693837000755,0.13240997,25906.0,25905.0,0.10680421]
[1693837004610,0.13240997,25906.0,25905.0,0.18400921]
[1693837005188,0.02450997,25906.0,25905.0,0.18400921]
[1693837008662,0.02450997,25906.0,25905.0,0.26121421]
[1693837009246,0.02450997,25906.0,25905.0,0.18400921]
[1693837010338,0.02450997,25906.0,25905.0,0.26121421]
[1693837011017,0.01963928,25906.0,25905.0,0.26121421]
[1693837012368,0.01963928,25906.0,25905.0,0.60639181]
[1693837012794,0.01963928,25906.0,25905.0,0.76550599]
[1693837013024,0.01963928,25906.0,25905.0,1.19340599]
[1693837013652,0.01963928,25906.0,25905.0,1.44285083]
[1693837013864,0.01863928,25906.0,25905.0,1.19140599]
[1693837014276,0.01863928,25906.0,25905.0,1.40855863]
[1693837014477,0.01963928,25906.0,25905.0,1.41055863]
[1693837014910,0.01963928,25906.0,25905.0,1.19340599]
[1693837018292,0.01963928,25906.0,25905.0,1.28595053]